[Event "Titled Tuesday Blitz February 21 Early 2023"]
[White "Ter-Sahakyan, Samvel"]
[Black "Le, Tuan Minh"]
[WhiteFideId "13302531"]
[BlackFideId "12401153"]
[WhiteElo "2617"]
[BlackElo "2542"]
[Result "0-1"]
[Round "07"]
[TimeControl "180+2"]
[Date "2023.02.21"]
[WhiteClock "0:00:02"]
[BlackClock "0:00:21"]

1. d4 {[%clk 0:03:00]}  Nf6 {[%clk 0:02:55]} 2. c4 {[%clk 0:03:00]}  c6 {[%clk 0:02:55]} 3. Nc3 {[%clk 0:02:58]}  d5 {[%clk 0:02:55]} 4. Nf3 {[%clk 0:02:58]}  a6 {[%clk 0:02:56]} 5. g3 {[%clk 0:02:49]}  Bf5 {[%clk 0:02:54]} 6. Qb3 {[%clk 0:02:31]}  b5 {[%clk 0:02:52]} 7. cxd5 {[%clk 0:02:29]}  cxd5 {[%clk 0:02:53]} 8. a4 {[%clk 0:02:09]}  b4 {[%clk 0:02:53]} 9. Qxb4 {[%clk 0:02:04]}  Nc6 {[%clk 0:02:49]} 10. Qc5 {[%clk 0:01:57]}  Rc8 {[%clk 0:02:44]} 11. a5 {[%clk 0:00:59]}  e5 {[%clk 0:02:43]} 12. Qb6 {[%clk 0:00:58]}  exd4 {[%clk 0:02:43]} 13. Na4 {[%clk 0:00:42]}  Bb4+ {[%clk 0:01:40]} 14. Bd2 {[%clk 0:00:41]}  Bxd2+ {[%clk 0:01:26]} 15. Nxd2 {[%clk 0:00:42]}  O-O {[%clk 0:01:26]} 16. Qxd8 {[%clk 0:00:33]}  Rfxd8 {[%clk 0:01:25]} 17. Nb6 {[%clk 0:00:27]}  Rb8 {[%clk 0:01:25]} 18. Nb3 {[%clk 0:00:18]}  Bc2 {[%clk 0:00:54]} 19. Nc5 {[%clk 0:00:13]}  Nxa5 {[%clk 0:00:53]} 20. Rxa5 {[%clk 0:00:13]}  Rxb6 {[%clk 0:00:53]} 21. Bg2 {[%clk 0:00:12]}  Rxb2 {[%clk 0:00:52]} 22. O-O {[%clk 0:00:12]}  Rb5 {[%clk 0:00:52]} 23. Rfa1 {[%clk 0:00:10]}  Rdb8 {[%clk 0:00:45]} 24. Bf3 {[%clk 0:00:08]}  g5 {[%clk 0:00:36]} 25. h3 {[%clk 0:00:04]}  Kg7 {[%clk 0:00:31]} 26. Nxa6 {[%clk 0:00:03]}  h5 {[%clk 0:00:29]} 27. g4 {[%clk 0:00:03]}  Rxa5 {[%clk 0:00:21]} 28. Rxa5 {[%clk 0:00:03]}  Ra8 {[%clk 0:00:21]} 29. Ra2 {[%clk 0:00:02]}  Bb3 {[%clk 0:00:21]} 30. Ra3 {[%clk 0:00:02]}  Bc4 {[%clk 0:00:21]} 0-1


[Site "https://www.chess.com"]

[Event "Titled Tuesday Blitz February 21 Early 2023"]
[White "Livaic, Leon"]
[Black "Hakobyan, Aram"]
[WhiteFideId "14531534"]
[BlackFideId "13306677"]
[WhiteElo "2579"]
[BlackElo "2608"]
[Result "1/2-1/2"]
[Round "07"]
[TimeControl "180+2"]
[Date "2023.02.21"]
[WhiteClock "0:00:11"]
[BlackClock "0:00:12"]

1. d4 {[%clk 0:03:00]}  g6 {[%clk 0:03:00]} 2. c4 {[%clk 0:03:00]}  Bg7 {[%clk 0:03:01]} 3. Nc3 {[%clk 0:03:01]}  c5 {[%clk 0:03:02]} 4. d5 {[%clk 0:03:01]}  d6 {[%clk 0:03:02]} 5. e4 {[%clk 0:03:01]}  Bxc3+ {[%clk 0:03:03]} 6. bxc3 {[%clk 0:03:01]}  e5 {[%clk 0:03:04]} 7. h4 {[%clk 0:02:57]}  Nd7 {[%clk 0:02:59]} 8. h5 {[%clk 0:02:57]}  h6 {[%clk 0:03:00]} 9. hxg6 {[%clk 0:02:57]}  fxg6 {[%clk 0:03:01]} 10. Nf3 {[%clk 0:02:54]}  Qf6 {[%clk 0:02:59]} 11. a4 {[%clk 0:02:48]}  a5 {[%clk 0:02:58]} 12. Rb1 {[%clk 0:02:46]}  Kd8 {[%clk 0:02:54]} 13. Rxh6 {[%clk 0:02:38]}  Kc7 {[%clk 0:02:41]} 14. Bg5 {[%clk 0:02:35]}  Qg7 {[%clk 0:02:41]} 15. Rxh8 {[%clk 0:02:35]}  Qxh8 {[%clk 0:02:42]} 16. Nh4 {[%clk 0:02:24]}  Ngf6 {[%clk 0:02:38]} 17. Qf3 {[%clk 0:01:45]}  Qg7 {[%clk 0:02:25]} 18. Bd3 {[%clk 0:01:41]}  Nh7 {[%clk 0:02:23]} 19. Qg3 {[%clk 0:01:32]}  Nxg5 {[%clk 0:02:10]} 20. Qxg5 {[%clk 0:01:33]}  Nf8 {[%clk 0:02:10]} 21. Kd2 {[%clk 0:01:04]}  Bd7 {[%clk 0:02:08]} 22. Nf5 {[%clk 0:00:54]}  Qf7 {[%clk 0:02:04]} 23. Qe7 {[%clk 0:00:49]}  Qxe7 {[%clk 0:02:02]} 24. Nxe7 {[%clk 0:00:50]}  Bxa4 {[%clk 0:01:49]} 25. g3 {[%clk 0:00:47]}  Re8 {[%clk 0:01:42]} 26. Ng8 {[%clk 0:00:47]}  Nd7 {[%clk 0:01:42]} 27. Nh6 {[%clk 0:00:45]}  Nf6 {[%clk 0:01:43]} 28. Nf7 {[%clk 0:00:38]}  Bd7 {[%clk 0:01:35]} 29. f4 {[%clk 0:00:32]}  Re7 {[%clk 0:01:09]} 30. Nxd6 {[%clk 0:00:27]}  Kxd6 {[%clk 0:00:59]} 31. Rb6+ {[%clk 0:00:27]}  Bc6 {[%clk 0:01:00]} 32. dxc6 {[%clk 0:00:28]}  bxc6 {[%clk 0:01:00]} 33. f5 {[%clk 0:00:17]}  gxf5 {[%clk 0:00:56]} 34. exf5 {[%clk 0:00:18]}  e4 {[%clk 0:00:57]} 35. Be2 {[%clk 0:00:18]}  Ra7 {[%clk 0:00:32]} 36. g4 {[%clk 0:00:17]}  a4 {[%clk 0:00:25]} 37. g5 {[%clk 0:00:17]}  a3 {[%clk 0:00:25]} 38. Rb1 {[%clk 0:00:18]}  Nh7 {[%clk 0:00:21]} 39. g6 {[%clk 0:00:17]}  Nf6 {[%clk 0:00:22]} 40. Ra1 {[%clk 0:00:17]}  Ke5 {[%clk 0:00:20]} 41. Ke3 {[%clk 0:00:15]}  a2 {[%clk 0:00:20]} 42. Bd1 {[%clk 0:00:12]}  Kxf5 {[%clk 0:00:20]} 43. g7 {[%clk 0:00:10]}  Rxg7 {[%clk 0:00:19]} 44. Rxa2 {[%clk 0:00:10]}  Rg3+ {[%clk 0:00:20]} 45. Kf2 {[%clk 0:00:10]}  Rxc3 {[%clk 0:00:20]} 46. Be2 {[%clk 0:00:10]}  Ng4+ {[%clk 0:00:19]} 47. Ke1 {[%clk 0:00:10]}  Ne5 {[%clk 0:00:18]} 48. Ra5 {[%clk 0:00:11]}  Rc1+ {[%clk 0:00:08]} 49. Kf2 {[%clk 0:00:07]}  Kf4 {[%clk 0:00:09]} 50. Rxc5 {[%clk 0:00:06]}  Rc2 {[%clk 0:00:09]} 51. Ke1 {[%clk 0:00:06]}  Ke3 {[%clk 0:00:08]} 52. Rxe5 {[%clk 0:00:04]}  Rxe2+ {[%clk 0:00:09]} 53. Kd1 {[%clk 0:00:05]}  Rd2+ {[%clk 0:00:09]} 54. Kc1 {[%clk 0:00:05]}  Rh2 {[%clk 0:00:07]} 55. Re6 {[%clk 0:00:04]}  Kd3 {[%clk 0:00:07]} 56. Rd6+ {[%clk 0:00:04]}  Kc3 {[%clk 0:00:07]} 57. Kd1 {[%clk 0:00:04]}  e3 {[%clk 0:00:07]} 58. Rxc6 {[%clk 0:00:04]}  Kd3 {[%clk 0:00:02]} 59. Rd6+ {[%clk 0:00:04]}  Kxc4 {[%clk 0:00:03]} 60. Ke1 {[%clk 0:00:04]}  Ra2 {[%clk 0:00:03]} 61. Rd8 {[%clk 0:00:04]}  Kc3 {[%clk 0:00:03]} 62. Rc8+ {[%clk 0:00:03]}  Kd3 {[%clk 0:00:04]} 63. Rd8+ {[%clk 0:00:04]}  Ke4 {[%clk 0:00:05]} 64. Re8+ {[%clk 0:00:05]}  Kf3 {[%clk 0:00:05]} 65. Rf8+ {[%clk 0:00:06]}  Kg4 {[%clk 0:00:06]} 66. Rg8+ {[%clk 0:00:06]}  Kf5 {[%clk 0:00:07]} 67. Rf8+ {[%clk 0:00:06]}  Ke4 {[%clk 0:00:08]} 68. Re8+ {[%clk 0:00:07]}  Kd4 {[%clk 0:00:08]} 69. Rd8+ {[%clk 0:00:08]}  Kc5 {[%clk 0:00:09]} 70. Rc8+ {[%clk 0:00:08]}  Kd6 {[%clk 0:00:09]} 71. Rd8+ {[%clk 0:00:09]}  Ke7 {[%clk 0:00:10]} 72. Rd3 {[%clk 0:00:09]}  e2 {[%clk 0:00:10]} 73. Re3+ {[%clk 0:00:09]}  Kd6 {[%clk 0:00:11]} 74. Rxe2 {[%clk 0:00:10]}  Ra1+ {[%clk 0:00:11]} 75. Kf2 {[%clk 0:00:10]}  Ra5 {[%clk 0:00:12]} 76. Rd2+ {[%clk 0:00:10]}  Rd5 {[%clk 0:00:12]} 77. Ke3 {[%clk 0:00:10]}  Rxd2 {[%clk 0:00:12]} 78. Kxd2 {[%clk 0:00:11]} 1/2-1/2


[Site "https://www.chess.com"]

[Event "Titled Tuesday Blitz February 21 Early 2023"]
[White "Bacrot, Etienne"]
[Black "Lenderman, Aleksandr"]
[WhiteFideId "605506"]
[BlackFideId "2021285"]
[WhiteElo "2667"]
[BlackElo "2572"]
[Result "1-0"]
[Round "07"]
[TimeControl "180+2"]
[Date "2023.02.21"]
[WhiteClock "0:00:07"]
[BlackClock "0:00:03"]

1. e4 {[%clk 0:03:00]}  e6 {[%clk 0:02:56]} 2. d4 {[%clk 0:03:00]}  d5 {[%clk 0:02:57]} 3. e5 {[%clk 0:03:00]}  c5 {[%clk 0:02:56]} 4. c3 {[%clk 0:03:01]}  Nc6 {[%clk 0:02:57]} 5. Nf3 {[%clk 0:03:01]}  Qb6 {[%clk 0:02:55]} 6. Be2 {[%clk 0:03:02]}  cxd4 {[%clk 0:02:51]} 7. cxd4 {[%clk 0:03:02]}  Nge7 {[%clk 0:02:51]} 8. Na3 {[%clk 0:02:59]}  Nf5 {[%clk 0:02:50]} 9. Nc2 {[%clk 0:02:59]}  Be7 {[%clk 0:02:48]} 10. O-O {[%clk 0:02:58]}  O-O {[%clk 0:02:48]} 11. a3 {[%clk 0:02:55]}  Bd7 {[%clk 0:02:47]} 12. b4 {[%clk 0:02:54]}  Rac8 {[%clk 0:02:44]} 13. Bb2 {[%clk 0:02:54]}  Na5 {[%clk 0:02:41]} 14. g3 {[%clk 0:02:38]}  Ba4 {[%clk 0:02:37]} 15. Bd3 {[%clk 0:02:37]}  Nc4 {[%clk 0:02:37]} 16. Bc1 {[%clk 0:02:34]}  f6 {[%clk 0:02:24]} 17. exf6 {[%clk 0:02:18]}  Bxf6 {[%clk 0:02:24]} 18. Rb1 {[%clk 0:02:00]}  Nxd4 {[%clk 0:02:17]} 19. Nfxd4 {[%clk 0:01:59]}  Bxd4 {[%clk 0:02:17]} 20. Qe2 {[%clk 0:01:51]}  Bxc2 {[%clk 0:02:07]} 21. Bxc2 {[%clk 0:01:46]}  Rxf2 {[%clk 0:02:03]} 22. Rxf2 {[%clk 0:01:45]}  Rf8 {[%clk 0:02:03]} 23. Qh5 {[%clk 0:01:21]}  Rxf2 {[%clk 0:01:50]} 24. Bxh7+ {[%clk 0:01:04]}  Kf8 {[%clk 0:01:49]} 25. Kh1 {[%clk 0:01:04]}  Be3 {[%clk 0:00:27]} 26. Bg6 {[%clk 0:00:28]}  Rf1+ {[%clk 0:00:22]} 27. Kg2 {[%clk 0:00:28]}  Rxc1 {[%clk 0:00:23]} 28. Qh8+ {[%clk 0:00:28]}  Ke7 {[%clk 0:00:23]} 29. Qxg7+ {[%clk 0:00:28]}  Kd8 {[%clk 0:00:20]} 30. Qf8+ {[%clk 0:00:16]}  Kc7 {[%clk 0:00:20]} 31. Qe7+ {[%clk 0:00:16]}  Kc8 {[%clk 0:00:21]} 32. Qe8+ {[%clk 0:00:15]}  Qd8 {[%clk 0:00:21]} 33. Qxe6+ {[%clk 0:00:16]}  Kb8 {[%clk 0:00:21]} 34. Rxc1 {[%clk 0:00:15]}  Bxc1 {[%clk 0:00:21]} 35. h4 {[%clk 0:00:13]}  Bxa3 {[%clk 0:00:17]} 36. h5 {[%clk 0:00:13]}  Bxb4 {[%clk 0:00:18]} 37. h6 {[%clk 0:00:13]}  Bc3 {[%clk 0:00:18]} 38. h7 {[%clk 0:00:13]}  a5 {[%clk 0:00:07]} 39. Qg8 {[%clk 0:00:13]}  Kc7 {[%clk 0:00:07]} 40. Bf7 {[%clk 0:00:13]}  a4 {[%clk 0:00:05]} 41. Kh2 {[%clk 0:00:12]}  Nb6 {[%clk 0:00:04]} 42. Bg6 {[%clk 0:00:06]}  a3 {[%clk 0:00:04]} 43. Bb1 {[%clk 0:00:06]}  Nc4 {[%clk 0:00:02]} 44. Ba2 {[%clk 0:00:06]}  Ne3 {[%clk 0:00:03]} 45. Qf7+ {[%clk 0:00:06]}  Kb8 {[%clk 0:00:02]} 46. Qg8 {[%clk 0:00:06]}  Kc7 {[%clk 0:00:03]} 47. Qf7+ {[%clk 0:00:07]}  Kb6 {[%clk 0:00:04]} 48. Qe6+ {[%clk 0:00:07]}  Ka5 {[%clk 0:00:03]} 49. Qxe3 {[%clk 0:00:07]}  d4 {[%clk 0:00:03]} 50. Qe5+ {[%clk 0:00:07]} 1-0


[Site "https://www.chess.com"]

[Event "Titled Tuesday Blitz February 21 Early 2023"]
[White "Daneshvar, Bardiya"]
[Black "Bernadskiy, Vitaliy"]
[WhiteFideId "12576468"]
[BlackFideId "14100371"]
[WhiteElo "2540"]
[BlackElo "2592"]
[Result "1-0"]
[Round "07"]
[TimeControl "180+2"]
[Date "2023.02.21"]
[WhiteClock "0:01:34"]
[BlackClock "0:01:17"]

1. b3 {[%clk 0:02:57]}  e5 {[%clk 0:02:58]} 2. Bb2 {[%clk 0:02:58]}  Nc6 {[%clk 0:02:59]} 3. e3 {[%clk 0:02:56]}  g6 {[%clk 0:02:59]} 4. Bb5 {[%clk 0:02:54]}  Bg7 {[%clk 0:02:57]} 5. Nf3 {[%clk 0:02:54]}  Nge7 {[%clk 0:02:56]} 6. d4 {[%clk 0:02:52]}  e4 {[%clk 0:02:49]} 7. Nfd2 {[%clk 0:02:52]}  f5 {[%clk 0:02:46]} 8. Be2 {[%clk 0:02:47]}  O-O {[%clk 0:02:45]} 9. c4 {[%clk 0:02:47]}  d5 {[%clk 0:02:44]} 10. g3 {[%clk 0:02:45]}  Be6 {[%clk 0:02:43]} 11. Nc3 {[%clk 0:02:45]}  h6 {[%clk 0:02:29]} 12. a3 {[%clk 0:02:38]}  Kh7 {[%clk 0:02:27]} 13. h4 {[%clk 0:02:37]}  a6 {[%clk 0:02:22]} 14. b4 {[%clk 0:02:37]}  dxc4 {[%clk 0:02:21]} 15. Nxc4 {[%clk 0:02:34]}  Nd5 {[%clk 0:02:21]} 16. Nxd5 {[%clk 0:02:32]}  Bxd5 {[%clk 0:02:21]} 17. Rc1 {[%clk 0:02:31]}  Qe7 {[%clk 0:02:18]} 18. Nd2 {[%clk 0:02:25]}  Nd8 {[%clk 0:02:15]} 19. Bc4 {[%clk 0:02:24]}  c6 {[%clk 0:02:14]} 20. Bxd5 {[%clk 0:02:16]}  cxd5 {[%clk 0:02:15]} 21. Qb3 {[%clk 0:02:16]}  Qf7 {[%clk 0:02:12]} 22. Rc5 {[%clk 0:02:14]}  Ne6 {[%clk 0:02:11]} 23. Rxd5 {[%clk 0:02:14]}  Rfe8 {[%clk 0:01:40]} 24. h5 {[%clk 0:01:57]}  gxh5 {[%clk 0:01:32]} 25. Rd6 {[%clk 0:01:50]}  Rac8 {[%clk 0:01:21]} 26. Kd1 {[%clk 0:01:43]}  Qc7 {[%clk 0:01:20]} 27. Rxe6 {[%clk 0:01:40]}  Rxe6 {[%clk 0:01:18]} 28. Qxe6 {[%clk 0:01:41]}  Qc2+ {[%clk 0:01:17]} 29. Ke1 {[%clk 0:01:34]} 1-0


[Site "https://www.chess.com"]

[Event "Titled Tuesday Blitz February 21 Early 2023"]
[White "Alekseenko, Kirill"]
[Black "Gokerkan, Cem Kaan"]
[WhiteFideId "4135539"]
[BlackFideId "6336760"]
[WhiteElo "2686"]
[BlackElo "2500"]
[Result "1-0"]
[Round "07"]
[TimeControl "180+2"]
[Date "2023.02.21"]
[WhiteClock "0:00:20"]
[BlackClock "0:00:57"]

1. d4 {[%clk 0:03:00]}  Nf6 {[%clk 0:03:00]} 2. Nc3 {[%clk 0:03:01]}  d5 {[%clk 0:02:59]} 3. Bf4 {[%clk 0:03:02]}  a6 {[%clk 0:02:59]} 4. e3 {[%clk 0:03:02]}  b5 {[%clk 0:03:00]} 5. h4 {[%clk 0:03:02]}  c5 {[%clk 0:02:50]} 6. dxc5 {[%clk 0:02:59]}  Nc6 {[%clk 0:02:49]} 7. a3 {[%clk 0:02:46]}  e5 {[%clk 0:01:58]} 8. Bg5 {[%clk 0:02:44]}  Be6 {[%clk 0:01:59]} 9. b4 {[%clk 0:02:21]}  Be7 {[%clk 0:01:57]} 10. Nf3 {[%clk 0:02:21]}  h6 {[%clk 0:01:53]} 11. Bxf6 {[%clk 0:02:20]}  Bxf6 {[%clk 0:01:54]} 12. Be2 {[%clk 0:02:17]}  e4 {[%clk 0:01:43]} 13. Nd4 {[%clk 0:02:14]}  Nxd4 {[%clk 0:01:43]} 14. exd4 {[%clk 0:02:14]}  Bxh4 {[%clk 0:01:44]} 15. g3 {[%clk 0:01:53]}  Bg5 {[%clk 0:01:39]} 16. a4 {[%clk 0:01:52]}  bxa4 {[%clk 0:01:33]} 17. Nxa4 {[%clk 0:01:37]}  O-O {[%clk 0:01:31]} 18. Nb6 {[%clk 0:01:37]}  Rb8 {[%clk 0:01:30]} 19. Rxa6 {[%clk 0:01:32]}  f5 {[%clk 0:01:31]} 20. c3 {[%clk 0:01:21]}  f4 {[%clk 0:01:31]} 21. gxf4 {[%clk 0:01:06]}  Rxf4 {[%clk 0:01:30]} 22. Nc4 {[%clk 0:00:58]}  Bc8 {[%clk 0:01:18]} 23. Rd6 {[%clk 0:00:58]}  Qf8 {[%clk 0:01:19]} 24. Rxd5 {[%clk 0:00:54]}  Rxf2 {[%clk 0:01:19]} 25. Rxg5 {[%clk 0:00:46]}  hxg5 {[%clk 0:01:17]} 26. Ne5 {[%clk 0:00:47]}  Be6 {[%clk 0:01:14]} 27. Rh8+ {[%clk 0:00:33]}  Kxh8 {[%clk 0:01:14]} 28. Ng6+ {[%clk 0:00:34]}  Kh7 {[%clk 0:01:09]} 29. Nxf8+ {[%clk 0:00:35]}  Rbxf8 {[%clk 0:01:10]} 30. d5 {[%clk 0:00:31]}  Bg4 {[%clk 0:00:55]} 31. Bxg4 {[%clk 0:00:31]}  Rf1+ {[%clk 0:00:56]} 32. Ke2 {[%clk 0:00:32]}  Rxd1 {[%clk 0:00:57]} 33. Kxd1 {[%clk 0:00:32]}  Rf4 {[%clk 0:00:57]} 34. c6 {[%clk 0:00:20]}  Rxg4 {[%clk 0:00:55]} 35. c7 {[%clk 0:00:21]}  Rg1+ {[%clk 0:00:56]} 36. Ke2 {[%clk 0:00:20]}  Rg2+ {[%clk 0:00:56]} 37. Ke1 {[%clk 0:00:20]}  Rg1+ {[%clk 0:00:57]} 38. Kf2 {[%clk 0:00:20]} 1-0


[Site "https://www.chess.com"]

[Event "Titled Tuesday Blitz February 21 Early 2023"]
[White "Erigaisi Arjun"]
[Black "Vakhlamov, Igor L."]
[WhiteFideId "35009192"]
[BlackFideId "24126748"]
[WhiteElo "2701"]
[BlackElo "2413"]
[Result "1-0"]
[Round "07"]
[TimeControl "180+2"]
[Date "2023.02.21"]
[WhiteClock "0:00:38"]
[BlackClock "0:00:02"]

1. c4 {[%clk 0:03:00]}  c5 {[%clk 0:02:58]} 2. Nc3 {[%clk 0:03:00]}  Nf6 {[%clk 0:02:57]} 3. Nf3 {[%clk 0:03:00]}  Nc6 {[%clk 0:02:57]} 4. g3 {[%clk 0:02:59]}  e6 {[%clk 0:02:55]} 5. Bg2 {[%clk 0:02:59]}  d5 {[%clk 0:02:56]} 6. cxd5 {[%clk 0:03:00]}  exd5 {[%clk 0:02:57]} 7. d4 {[%clk 0:03:00]}  Be7 {[%clk 0:02:56]} 8. O-O {[%clk 0:03:00]}  O-O {[%clk 0:02:55]} 9. a3 {[%clk 0:03:01]}  c4 {[%clk 0:02:52]} 10. Ne5 {[%clk 0:03:01]}  Be6 {[%clk 0:02:49]} 11. Bg5 {[%clk 0:02:59]}  Rc8 {[%clk 0:02:45]} 12. e3 {[%clk 0:02:53]}  Nd7 {[%clk 0:02:23]} 13. Bxe7 {[%clk 0:02:41]}  Nxe7 {[%clk 0:02:24]} 14. Qd2 {[%clk 0:02:24]}  a6 {[%clk 0:02:20]} 15. Rad1 {[%clk 0:02:22]}  b5 {[%clk 0:02:20]} 16. Ne2 {[%clk 0:02:15]}  Qc7 {[%clk 0:01:17]} 17. f4 {[%clk 0:02:15]}  f6 {[%clk 0:01:13]} 18. Nf3 {[%clk 0:01:49]}  Rfe8 {[%clk 0:01:11]} 19. h3 {[%clk 0:01:48]}  Nf5 {[%clk 0:01:09]} 20. Ne1 {[%clk 0:01:34]}  Nb6 {[%clk 0:01:06]} 21. Nc2 {[%clk 0:01:23]}  Bf7 {[%clk 0:01:04]} 22. g4 {[%clk 0:01:21]}  Nd6 {[%clk 0:01:05]} 23. f5 {[%clk 0:01:22]}  Ne4 {[%clk 0:01:02]} 24. Bxe4 {[%clk 0:01:22]}  Rxe4 {[%clk 0:01:02]} 25. Nf4 {[%clk 0:01:14]}  Rce8 {[%clk 0:01:00]} 26. Rf3 {[%clk 0:01:11]}  Na4 {[%clk 0:00:59]} 27. Nb4 {[%clk 0:01:10]}  a5 {[%clk 0:00:56]} 28. Nbxd5 {[%clk 0:01:07]}  Bxd5 {[%clk 0:00:54]} 29. Nxd5 {[%clk 0:01:08]}  Qd6 {[%clk 0:00:44]} 30. Nf4 {[%clk 0:01:03]}  b4 {[%clk 0:00:37]} 31. Ne6 {[%clk 0:01:03]}  c3 {[%clk 0:00:31]} 32. bxc3 {[%clk 0:00:58]}  Nxc3 {[%clk 0:00:32]} 33. Ra1 {[%clk 0:00:57]}  h5 {[%clk 0:00:29]} 34. gxh5 {[%clk 0:00:45]}  Rh4 {[%clk 0:00:21]} 35. axb4 {[%clk 0:00:42]}  axb4 {[%clk 0:00:22]} 36. Qg2 {[%clk 0:00:40]}  Qd7 {[%clk 0:00:13]} 37. Rg3 {[%clk 0:00:40]}  Kh8 {[%clk 0:00:03]} 38. Rxg7 {[%clk 0:00:37]}  Qd5 {[%clk 0:00:03]} 39. Rh7+ {[%clk 0:00:37]}  Kxh7 {[%clk 0:00:02]} 40. Qg7# {[%clk 0:00:38]} 1-0


[Site "https://www.chess.com"]

[Event "Titled Tuesday Blitz February 21 Early 2023"]
[White "Zemlyanskii, Ivan"]
[Black "Shimanov, Aleksandr"]
[WhiteFideId "24249971"]
[BlackFideId "4198603"]
[WhiteElo "2300"]
[BlackElo "2581"]
[Result "1-0"]
[Round "07"]
[TimeControl "180+2"]
[Date "2023.02.21"]
[WhiteClock "0:00:37"]
[BlackClock "0:00:05"]

1. d4 {[%clk 0:02:53]}  Nf6 {[%clk 0:02:57]} 2. c4 {[%clk 0:02:53]}  g6 {[%clk 0:02:57]} 3. h4 {[%clk 0:02:51]}  d6 {[%clk 0:02:53]} 4. Nc3 {[%clk 0:02:51]}  Nbd7 {[%clk 0:02:35]} 5. e4 {[%clk 0:02:50]}  e5 {[%clk 0:02:34]} 6. d5 {[%clk 0:02:46]}  Nc5 {[%clk 0:02:34]} 7. Qc2 {[%clk 0:02:43]}  a5 {[%clk 0:02:34]} 8. Be2 {[%clk 0:02:42]}  h5 {[%clk 0:02:24]} 9. Bg5 {[%clk 0:02:37]}  Be7 {[%clk 0:02:24]} 10. Nh3 {[%clk 0:02:17]}  Nh7 {[%clk 0:02:19]} 11. Bxe7 {[%clk 0:02:16]}  Qxe7 {[%clk 0:02:20]} 12. g3 {[%clk 0:02:09]}  Bd7 {[%clk 0:02:09]} 13. O-O-O {[%clk 0:02:06]}  O-O-O {[%clk 0:02:04]} 14. f3 {[%clk 0:01:59]}  g5 {[%clk 0:02:02]} 15. Nf2 {[%clk 0:01:55]}  Rdg8 {[%clk 0:02:00]} 16. Nd3 {[%clk 0:01:49]}  gxh4 {[%clk 0:01:50]} 17. Nxc5 {[%clk 0:01:42]}  dxc5 {[%clk 0:01:46]} 18. Rxh4 {[%clk 0:01:41]}  Nf8 {[%clk 0:01:43]} 19. Rdh1 {[%clk 0:01:29]}  Rxg3 {[%clk 0:01:40]} 20. Rxh5 {[%clk 0:01:27]}  Rxh5 {[%clk 0:01:41]} 21. Rxh5 {[%clk 0:01:28]}  Rg1+ {[%clk 0:01:40]} 22. Bd1 {[%clk 0:01:21]}  Qf6 {[%clk 0:01:37]} 23. Qh2 {[%clk 0:01:19]}  Rg5 {[%clk 0:01:23]} 24. Qh4 {[%clk 0:01:17]}  Rg6 {[%clk 0:00:11]} 25. Qxf6 {[%clk 0:01:14]}  Rxf6 {[%clk 0:00:12]} 26. Rh8 {[%clk 0:01:14]}  Kd8 {[%clk 0:00:13]} 27. Rxf8+ {[%clk 0:01:14]}  Ke7 {[%clk 0:00:14]} 28. Rb8 {[%clk 0:01:09]}  b6 {[%clk 0:00:14]} 29. Kd2 {[%clk 0:01:08]}  Rh6 {[%clk 0:00:13]} 30. Be2 {[%clk 0:01:06]}  Rh2 {[%clk 0:00:14]} 31. Nb5 {[%clk 0:01:03]}  f5 {[%clk 0:00:13]} 32. exf5 {[%clk 0:00:59]}  Bxf5 {[%clk 0:00:14]} 33. Nxc7 {[%clk 0:00:55]}  e4 {[%clk 0:00:14]} 34. Ke3 {[%clk 0:00:48]}  exf3 {[%clk 0:00:14]} 35. Kxf3 {[%clk 0:00:47]}  Kd6 {[%clk 0:00:12]} 36. Nb5+ {[%clk 0:00:46]}  Ke5 {[%clk 0:00:12]} 37. Re8+ {[%clk 0:00:45]}  Kf6 {[%clk 0:00:12]} 38. d6 {[%clk 0:00:45]}  Kg5 {[%clk 0:00:11]} 39. Kg3 {[%clk 0:00:39]}  Rh3+ {[%clk 0:00:11]} 40. Kf2 {[%clk 0:00:39]}  Rh2+ {[%clk 0:00:11]} 41. Ke1 {[%clk 0:00:39]}  Kf4 {[%clk 0:00:11]} 42. Nc7 {[%clk 0:00:36]}  Be4 {[%clk 0:00:07]} 43. Nd5+ {[%clk 0:00:36]}  Bxd5 {[%clk 0:00:03]} 44. cxd5 {[%clk 0:00:36]}  Rh1+ {[%clk 0:00:03]} 45. Kd2 {[%clk 0:00:37]}  Rh7 {[%clk 0:00:04]} 46. Re7 {[%clk 0:00:36]}  Rh8 {[%clk 0:00:04]} 47. d7 {[%clk 0:00:37]}  Rd8 {[%clk 0:00:05]} 48. Bb5 {[%clk 0:00:37]} 1-0


[Site "https://www.chess.com"]

[Event "Titled Tuesday Blitz February 21 Early 2023"]
[White "Kukhmazov, Arsen"]
[Black "Demchenko, Anton"]
[WhiteFideId "24108260"]
[BlackFideId "4160258"]
[WhiteElo "2512"]
[BlackElo "2623"]
[Result "1-0"]
[Round "07"]
[TimeControl "180+2"]
[Date "2023.02.21"]
[WhiteClock "0:00:04"]
[BlackClock "0:00:04"]

1. d4 {[%clk 0:03:00]}  d5 {[%clk 0:02:55]} 2. c4 {[%clk 0:03:00]}  c6 {[%clk 0:02:50]} 3. Nf3 {[%clk 0:02:56]}  Nf6 {[%clk 0:02:50]} 4. Qc2 {[%clk 0:02:56]}  g6 {[%clk 0:02:49]} 5. Bf4 {[%clk 0:02:55]}  Bg7 {[%clk 0:02:47]} 6. e3 {[%clk 0:02:56]}  O-O {[%clk 0:02:47]} 7. Nc3 {[%clk 0:02:55]}  Na6 {[%clk 0:02:42]} 8. a3 {[%clk 0:02:49]}  Bf5 {[%clk 0:02:40]} 9. Qb3 {[%clk 0:02:41]}  Qb6 {[%clk 0:02:38]} 10. Qa2 {[%clk 0:02:41]}  Ne4 {[%clk 0:02:11]} 11. Nxe4 {[%clk 0:02:09]}  Bxe4 {[%clk 0:02:05]} 12. Nd2 {[%clk 0:02:07]}  Bf5 {[%clk 0:01:58]} 13. b4 {[%clk 0:01:50]}  Rae8 {[%clk 0:01:43]} 14. cxd5 {[%clk 0:01:28]}  cxd5 {[%clk 0:01:43]} 15. Qxd5 {[%clk 0:01:29]}  e5 {[%clk 0:01:35]} 16. dxe5 {[%clk 0:01:23]}  Nc7 {[%clk 0:01:30]} 17. Qd4 {[%clk 0:01:05]}  Qc6 {[%clk 0:01:15]} 18. Qc4 {[%clk 0:00:53]}  Qd7 {[%clk 0:01:11]} 19. Nf3 {[%clk 0:00:48]}  Ne6 {[%clk 0:01:07]} 20. Be2 {[%clk 0:00:48]}  Rc8 {[%clk 0:01:00]} 21. Qb3 {[%clk 0:00:45]}  g5 {[%clk 0:00:32]} 22. Bg3 {[%clk 0:00:43]}  h5 {[%clk 0:00:25]} 23. h4 {[%clk 0:00:42]}  g4 {[%clk 0:00:24]} 24. Ng5 {[%clk 0:00:38]}  Rc2 {[%clk 0:00:11]} 25. Rd1 {[%clk 0:00:21]}  Qc6 {[%clk 0:00:09]} 26. Kf1 {[%clk 0:00:10]}  Nxg5 {[%clk 0:00:07]} 27. hxg5 {[%clk 0:00:11]}  Be4 {[%clk 0:00:08]} 28. Rh2 {[%clk 0:00:10]}  Rc8 {[%clk 0:00:07]} 29. Re1 {[%clk 0:00:05]}  Bd5 {[%clk 0:00:04]} 30. Qd3 {[%clk 0:00:05]}  Be4 {[%clk 0:00:04]} 31. Qd6 {[%clk 0:00:04]}  Qc3 {[%clk 0:00:04]} 32. f3 {[%clk 0:00:04]} 1-0


[Site "https://www.chess.com"]